bitfinex-derivatives/quotes_BTCF0:USTF0_20230102
["timestamp","ask_amount","ask_price","bid_price","bid_amount"]
[1672633823502,0.1979,16653.0,16652.0,0.20593427]
[1672633823810,0.1979,16653.0,16652.0,0.50663427]
[1672633824754,0.1991,16653.0,16652.0,0.50663427]
[1672633825491,0.1991,16653.0,16652.0,1.10713427]
[1672633828649,0.1991,16653.0,16652.0,0.80643427]
[1672633828862,0.1991,16653.0,16652.0,1.10713427]
[1672633830851,0.1991,16653.0,16652.0,0.80643427]
[1672633831061,0.1991,16653.0,16652.0,1.10713427]
[1672633834539,0.049,16653.0,16652.0,1.10713427]
[1672633837896,0.049,16653.0,16652.0,1.25723427]
[1672633845254,0.049,16653.0,16652.0,1.25704918]
[1672633871947,0.049,16653.0,16652.0,0.95634918]
[1672633872154,0.049,16653.0,16652.0,1.25704918]
[1672633872574,0.049,16653.0,16652.0,0.95634918]
[1672633872790,0.049,16653.0,16652.0,1.25704918]
[1672633879630,0.049,16653.0,16652.0,0.95634918]
[1672633879840,0.049,16653.0,16652.0,1.25704918]
[1672633892663,0.049,16653.0,16652.0,0.95634918]
[1672633893091,0.049,16653.0,16652.0,1.25704918]
[1672633894241,0.049,16653.0,16652.0,1.25694239]
[1672633912532,0.049,16653.0,16652.0,0.95624239]
[1672633912848,0.049,16653.0,16652.0,1.25694239]
[1672633913371,0.049,16653.0,16652.0,0.95624239]
[1672633913574,0.049,16653.0,16652.0,1.25694239]
[1672633916105,0.3316,16655.0,16654.0,0.6005]
[1672633916414,0.1488,16657.0,16654.0,1.0501]
[1672633916623,0.1488,16657.0,16656.0,0.3007]
[1672633916944,0.1488,16657.0,16656.0,0.6007]
[1672633917357,0.1501,16658.0,16656.0,0.7508]
[1672633917887,0.07,16657.0,16656.0,0.7578]
[1672633918099,0.07,16657.0,16656.0,1.3583]
[1672633918311,0.2201,16658.0,16656.0,1.3583]
[1672633918723,0.1501,16658.0,16656.0,1.3513]
[1672633918934,0.07,16657.0,16656.0,1.3583]
[1672633919985,0.2191,16658.0,16656.0,1.3573]
[1672633920407,0.069,16657.0,16656.0,1.3573]
[1672633921239,0.2191,16658.0,16656.0,1.3573]
[1672633921673,0.1501,16658.0,16656.0,1.3513]
[1672633922931,0.1501,16658.0,16657.0,0.3007]
[1672633923241,0.2191,16658.0,16657.0,0.3007]
[1672633924192,0.2201,16658.0,16657.0,0.3077]
[1672633934599,0.07,16658.0,16657.0,0.3077]
[1672633935964,0.07,16658.0,16657.0,0.007]
[1672633936169,0.07,16658.0,16657.0,0.3077]
[1672633937753,0.07,16658.0,16657.0,0.007]
[1672633938168,0.07,16658.0,16657.0,0.3077]
[1672633944607,0.2193,16658.0,16657.0,0.3077]
[1672633948721,0.2193,16658.0,16657.0,0.9082]
[1672633948929,0.07,16658.0,16657.0,1.0583]
[1672633968138,0.07,16658.0,16657.0,1.05817309]
[1672633975288,0.06980156,16658.0,16657.0,1.05817309]
[1672633997664,0.1494,16660.0,16657.0,1.0513]
[1672633997880,0.1494,16660.0,16659.0,0.3007]
[1672633998713,0.2144,16660.0,16659.0,0.3077]
[1672634020584,0.2144,16660.0,16659.0,0.30758977]
[1672634026903,0.2144,16660.0,16659.0,0.00688977]
[1672634027216,0.2144,16660.0,16659.0,0.30758977]
[1672634033005,0.2144,16660.0,16659.0,0.00688977]
[1672634033215,0.2144,16660.0,16659.0,0.30758977]
[1672634034583,0.2143,16660.0,16659.0,0.30758977]
[1672634044568,0.2144,16660.0,16659.0,0.30758977]
[1672634046040,0.2144,16660.0,16659.0,0.00688977]
[1672634046242,0.2144,16660.0,16659.0,0.30758977]
[1672634046448,0.2144,16660.0,16659.0,0.60758977]
[1672634053179,0.065,16660.0,16659.0,1.35818977]
[1672634059077,0.065,16660.0,16659.0,1.05748977]
[1672634059285,0.065,16660.0,16659.0,1.35818977]
[1672634061073,0.065,16660.0,16659.0,1.05748977]
[1672634061279,0.065,16660.0,16659.0,1.35818977]
[1672634067484,0.056,16660.0,16659.0,1.3573]
[1672634068003,0.056,16660.0,16659.0,1.3570711]
[1672634070534,0.205,16660.0,16659.0,1.2069711]
[1672634074632,0.2061,16660.0,16659.0,1.2069711]
[1672634078418,0.2049,16660.0,16659.0,0.6064711]
[1672634084506,0.2061,16660.0,16659.0,0.6064711]
[1672634098907,0.2061,16660.0,16659.0,0.3057711]
[1672634099124,0.2061,16660.0,16659.0,0.6064711]
[1672634102064,0.2059174,16660.0,16659.0,0.6064711]
[1672634114681,0.2047174,16660.0,16659.0,0.6064711]
[1672634124567,0.2055174,16660.0,16659.0,0.6064711]
[1672634129096,0.2055174,16660.0,16659.0,0.3057711]
[1672634129304,0.2055174,16660.0,16659.0,0.6064711]
[1672634130145,0.2055174,16660.0,16659.0,0.3057711]
[1672634130460,0.2055174,16660.0,16659.0,0.6064711]
[1672634131189,0.2055174,16660.0,16659.0,0.3057711]
[1672634131405,0.2055174,16660.0,16659.0,0.6064711]
[1672634132863,0.2055174,16660.0,16659.0,0.3057711]
[1672634133079,0.2055174,16660.0,16659.0,0.6064711]
[1672634135500,0.2055174,16660.0,16659.0,0.3057711]
[1672634135707,0.2055174,16660.0,16659.0,0.6064711]
[1672634139283,0.2048174,16660.0,16659.0,0.6064711]
[1672634145058,0.2048174,16660.0,16659.0,0.3057711]
[1672634145273,0.2048174,16660.0,16659.0,0.6064711]
[1672634146000,0.2048174,16660.0,16659.0,0.3057711]
[1672634146218,0.2048174,16660.0,16659.0,0.6064711]
[1672634152199,0.0558174,16660.0,16659.0,0.7565711]
[1672634152410,0.0558174,16660.0,16659.0,0.7552711]
[1672634154516,0.0558174,16660.0,16659.0,0.7565711]
[1672634155772,0.0558174,16660.0,16659.0,0.75650883]
[1672634173972,0.0558174,16660.0,16659.0,0.45580883]
[1672634174184,0.0558174,16660.0,16659.0,0.75650883]
[1672634174605,0.0558174,16660.0,16659.0,0.75530883]
[1672634195616,0.0558174,16660.0,16659.0,0.45460883]
[1672634195826,0.0558174,16660.0,16659.0,0.75530883]
[1672634199513,0.0558174,16660.0,16659.0,0.45460883]
[1672634199825,0.0558174,16660.0,16659.0,0.75530883]
[1672634200449,0.2059174,16660.0,16659.0,0.60640883]
[1672634204559,0.2055174,16660.0,16659.0,0.60640883]
[1672634207286,0.2048174,16660.0,16659.0,0.3067]
[1672634207701,0.2048174,16660.0,16659.0,0.30654612]
[1672634212854,0.20464915,16660.0,16659.0,0.30654612]
[1672634227038,0.20464915,16660.0,16659.0,0.00584612]
[1672634227247,0.20464915,16660.0,16659.0,0.30654612]
[1672634234614,0.20574915,16660.0,16659.0,0.30654612]
[1672634243550,0.20574915,16660.0,16659.0,0.00584612]
[1672634243756,0.20574915,16660.0,16659.0,0.30654612]
[1672634257106,0.20574915,16660.0,16659.0,0.30641346]
[1672634257531,0.20574915,16660.0,16659.0,0.00571346]
[1672634257743,0.20574915,16660.0,16659.0,0.30641346]
[1672634261631,0.50474915,16660.0,16659.0,0.30641346]
[1672634261842,0.50474915,16660.0,16659.0,0.09671739]
[1672634262161,0.35584915,16660.0,16659.0,0.09671739]
[1672634265525,0.35584915,16660.0,16659.0,0.3007]
[1672634268050,0.35584915,16660.0,16656.0,0.3]
[1672634268364,0.1501,16657.0,16656.0,0.3]
[1672634268883,0.1501,16657.0,16656.0,0.6007]
[1672634269828,0.1561,16657.0,16656.0,0.6797]
[1672634280125,0.1561,16657.0,16656.0,0.3797]
[1672634281071,0.1561,16657.0,16656.0,0.079]
[1672634281269,0.1561,16657.0,16656.0,0.3797]
[1672634284646,0.3062,16657.0,16656.0,0.3797]
[1672634287165,1.3558,16657.0,16656.0,0.079]
[1672634288631,1.3558,16657.0,16656.0,0.3797]
[1672634293896,1.3558,16657.0,16656.0,0.079]
[1672634309856,1.6565,16657.0,16656.0,0.079]
[1672634310181,4.8109,16657.0,16653.0,0.3007]
[1672634310392,1.348,16654.0,16653.0,0.3007]
[1672634311335,1.348,16654.0,16653.0,0.3067]
[1672634311652,1.363,16654.0,16653.0,0.3067]
[1672634317222,1.363,16654.0,16653.0,0.006]
[1672634321225,2.2651,16654.0,16653.0,0.006]
[1672634322170,2.8656,16654.0,16653.0,0.006]
[1672634322374,2.8656,16654.0,16651.0,0.3007]
[1672634322702,1.35,16652.0,16649.0,0.3007]
[1672634322906,0.1501,16650.0,16649.0,0.7007]
[1672634324064,0.1641,16650.0,16649.0,0.7007]
[1672634324486,0.1501,16650.0,16649.0,0.7007]
[1672634324686,0.3152,16650.0,16649.0,0.7007]
[1672634325959,0.1651,16650.0,16649.0,0.7007]
[1672634326906,0.1671,16650.0,16649.0,0.7007]
[1672634327430,0.1661,16650.0,16649.0,0.7007]
[1672634327844,0.1671,16650.0,16649.0,0.7007]
[1672634328160,0.1664,16650.0,16649.0,0.7007]
[1672634328367,0.1664,16650.0,16649.0,1.0007]
[1672634328575,0.1654,16650.0,16649.0,1.0007]
[1672634329526,0.1494,16650.0,16649.0,1.0007]
[1672634329741,0.1664,16650.0,16649.0,1.0007]
[1672634330265,0.1494,16650.0,16649.0,1.0007]
[1672634330476,0.1654,16650.0,16649.0,1.0007]
[1672634334154,0.1654,16650.0,16649.0,0.7007]
[1672634334579,0.1657,16650.0,16649.0,0.7007]
[1672634337627,0.1657,16650.0,16649.0,0.4]
[1672634337826,0.1657,16650.0,16649.0,0.7007]
[1672634339830,0.1497,16650.0,16649.0,0.7007]
[1672634340041,0.1657,16650.0,16649.0,0.7007]
[1672634340252,0.1497,16650.0,16649.0,0.7007]
[1672634340570,0.1667,16650.0,16649.0,0.7007]
[1672634344563,0.1671,16650.0,16649.0,0.7007]
[1672634346867,0.1671,16650.0,16649.0,0.3007]
[1672634349077,0.3166,16650.0,16649.0,0.3007]
[1672634350761,0.3156,16650.0,16649.0,0.3007]
[1672634351915,0.3156,16650.0,16646.0,0.5]
[1672634352123,0.016,16650.0,16649.0,0.3007]
[1672634352445,0.3139,16650.0,16649.0,0.3007]
[1672634359169,0.4632,16650.0,16649.0,0.3007]
[1672634359384,0.4632,16650.0,16647.0,0.3007]
[1672634359591,0.2993,16648.0,16647.0,0.3007]
[1672634360948,0.3153,16648.0,16647.0,0.3007]
[1672634365370,0.2993,16648.0,16647.0,0.3007]
[1672634365583,0.3163,16648.0,16647.0,0.3007]
[1672634367579,0.3163,16648.0,16646.0,0.5]
[1672634367891,0.1666,16648.0,16647.0,0.3007]
[1672634368102,0.3162,16648.0,16647.0,0.3007]
[1672634371566,0.3162,16648.0,16647.0,0.30054043]
[1672634372838,0.3162,16648.0,16643.0,0.3064]
[1672634372839,0.4518,16647.0,16643.0,0.6071]
[1672634373040,0.4503,16644.0,16643.0,0.6071]
[1672634373356,0.4503,16644.0,16643.0,0.8007]
[1672634374095,0.4653,16644.0,16643.0,0.8007]
[1672634374520,0.3152,16644.0,16643.0,0.8007]
[1672634376512,0.1651,16644.0,16643.0,0.8007]
[1672634393009,0.015,16644.0,16643.0,0.8007]
[1672634393640,0.1497,16647.0,16643.0,1.4009]
[1672634393853,0.1497,16647.0,16646.0,0.3007]
[1672634394591,0.1494,16647.0,16646.0,0.3007]
[1672634395004,0.1654,16647.0,16646.0,0.3137]
[1672634395748,0.1494,16647.0,16646.0,0.3007]
[1672634395960,0.1654,16647.0,16646.0,0.3137]
[1672634397746,0.1494,16647.0,16646.0,0.3007]
[1672634397956,0.1494,16647.0,16646.0,0.3137]
[1672634397957,0.1654,16647.0,16646.0,0.3137]
[1672634398265,0.1494,16647.0,16646.0,0.3007]
[1672634398479,0.1654,16647.0,16646.0,0.3137]
[1672634404674,0.016,16647.0,16646.0,0.3137]
[1672634411511,0.1661,16647.0,16646.0,0.3137]
[1672634424537,0.1648,16647.0,16646.0,0.3137]
[1672634425379,0.1648,16647.0,16646.0,0.013]
[1672634425593,0.1648,16647.0,16646.0,0.3137]
[1672634434521,0.1649,16647.0,16646.0,0.3137]
[1672634438522,0.1649,16647.0,16646.0,0.31360519]
[1672634444604,0.1657,16647.0,16646.0,0.31360519]
[1672634452915,0.1657,16647.0,16646.0,0.01290519]
[1672634453126,0.1657,16647.0,16646.0,0.31360519]
[1672634454483,0.1661,16647.0,16646.0,0.31360519]
[1672634472985,0.1661,16647.0,16646.0,0.01290519]
[1672634473517,0.1661,16647.0,16646.0,0.31360519]
[1672634476343,0.1661,16647.0,16646.0,0.61360519]
[1672634478459,0.016,16647.0,16646.0,0.76370519]
[1672634478986,0.3229,16650.0,16646.0,0.91380519]
[1672634479303,0.1489,16651.0,16649.0,0.4508]
[1672634479512,0.1489,16651.0,16650.0,0.5]
[1672634480872,0.1489,16651.0,16650.0,0.508]
[1672634484028,0.1489,16651.0,16650.0,0.8087]
[1672634484656,0.1488,16651.0,16650.0,0.8087]
[1672634485821,0.1501,16651.0,16650.0,0.3087]
[1672634487599,0.1501,16651.0,16650.0,0.3077]
[1672634494749,0.3002,16651.0,16650.0,0.3077]
[1672634495794,0.3002,16651.0,16650.0,0.007]
[1672634496004,0.3002,16651.0,16650.0,0.3077]
[1672634496213,1.3509,16651.0,16650.0,0.3077]
[1672634500837,1.3509,16651.0,16650.0,0.007]
[1672634501895,0.4493,16651.0,16650.0,0.007]
[1672634504522,0.4498,16651.0,16650.0,0.007]
[1672634509466,0.4498,16651.0,16650.0,0.3077]
[1672634513032,0.4498,16651.0,16650.0,0.007]
[1672634513347,0.4498,16651.0,16650.0,0.3077]
[1672634523236,0.4498,16651.0,16650.0,0.30761216]
[1672634525125,0.4498,16651.0,16650.0,0.00691216]
[1672634535316,0.7505,16651.0,16650.0,0.00691216]
[1672634537629,0.4498,16651.0,16650.0,0.00691216]
[1672634542149,0.44964312,16651.0,16650.0,0.00691216]
[1672634559478,0.44964312,16651.0,16650.0,0.30761216]
[1672634571155,0.44964312,16651.0,16650.0,0.00691216]
[1672634571372,1.65014312,16651.0,16650.0,0.00691216]
[1672634573253,2.25064312,16651.0,16650.0,0.00691216]
[1672634574517,1.94994312,16651.0,16650.0,0.00691216]
[1672634574728,2.25064312,16651.0,16650.0,0.00691216]
[1672634586710,2.25064312,16651.0,16650.0,0.00672332]
[1672634587447,2.25064312,16651.0,16647.0,0.3007]
[1672634587662,1.9115,16651.0,16650.0,0.004]
[1672634587864,2.359,16651.0,16650.0,0.004]
[1672634588602,2.36,16651.0,16650.0,0.003]
[1672634595648,2.0593,16651.0,16650.0,0.003]
[1672634596065,2.36,16651.0,16650.0,0.003]
[1672634604579,2.0593,16651.0,16650.0,0.003]
[1672634604783,2.36,16651.0,16650.0,0.003]
[1672634605631,2.36,16651.0,16646.0,0.3]
[1672634605843,0.1501,16647.0,16646.0,0.3]
[1672634606685,0.1501,16647.0,16646.0,0.332]
[1672634606999,0.1501,16647.0,16646.0,0.6327]
[1672634607208,0.1641,16647.0,16646.0,0.6327]
[1672634614566,0.3136,16647.0,16646.0,0.6327]
[1672634618984,0.3136,16647.0,16646.0,0.3327]
[1672634624134,0.3136,16647.0,16646.0,0.032]
[1672634624558,0.4637,16647.0,16646.0,0.032]
[1672634634335,0.4637,16647.0,16646.0,0.3327]
[1672634654528,0.4637,16647.0,16646.0,0.33253275]
[1672634658836,0.4637,16647.0,16646.0,0.03183275]
[1672634659044,0.4637,16647.0,16646.0,0.33253275]
[1672634664829,0.4637,16647.0,16646.0,0.03183275]
[1672634665038,0.4637,16647.0,16646.0,0.33253275]
[1672634666518,0.4637,16647.0,16646.0,0.03183275]
[1672634666712,0.4637,16647.0,16646.0,0.33253275]
[1672634668817,0.4637,16647.0,16646.0,0.03183275]
[1672634669028,0.4637,16647.0,16646.0,0.33253275]
[1672634670819,0.4637,16647.0,16646.0,0.03183275]
[1672634671032,0.4637,16647.0,16646.0,0.33253275]
[1672634671982,0.4637,16647.0,16646.0,0.03183275]
[1672634672293,0.4637,16647.0,16646.0,0.33253275]
[1672634674814,0.4637,16647.0,16646.0,0.03183275]
[1672634675019,0.4637,16647.0,16646.0,0.33253275]
[1672634675444,0.4637,16647.0,16646.0,0.03183275]
[1672634675649,0.4637,16647.0,16646.0,0.33253275]
[1672634677025,0.4637,16647.0,16646.0,0.03183275]
[1672634678081,0.4637,16647.0,16646.0,0.33253275]
[1672634680922,0.4637,16647.0,16646.0,0.03183275]
[1672634683024,0.4637,16647.0,16646.0,0.33253275]
[1672634686788,0.4637,16647.0,16646.0,0.03183275]
[1672634692061,0.4637,16647.0,16646.0,0.33253275]
[1672634693843,0.4637,16647.0,16646.0,0.03183275]
[1672634694266,0.4637,16647.0,16646.0,0.33253275]
[1672634698362,0.4637,16647.0,16646.0,0.03183275]
[1672634698576,0.4637,16647.0,16646.0,0.33253275]
[1672634700054,0.3136,16647.0,16646.0,0.33253275]
[1672634700265,0.1641,16647.0,16646.0,0.33253275]
[1672634701628,0.3131,16647.0,16646.0,0.33253275]
[1672634703099,0.3131,16647.0,16646.0,0.3324512]
[1672634712253,0.163,16647.0,16646.0,0.3324512]
[1672634714558,0.3131,16647.0,16646.0,0.3324512]
[1672634717922,0.3131,16647.0,16646.0,0.0317512]
[1672634718133,0.3131,16647.0,16646.0,0.3324512]
[1672634724540,0.4632,16647.0,16646.0,0.3324512]
[1672634734532,0.3131,16647.0,16646.0,0.3324512]
[1672634736430,0.3131,16647.0,16646.0,0.0317512]
[1672634736636,0.3131,16647.0,16646.0,0.3324512]
[1672634738531,0.3131,16647.0,16646.0,0.0317512]
[1672634738742,0.3131,16647.0,16646.0,0.3324512]
[1672634741056,0.3131,16647.0,16646.0,0.0317512]
[1672634742421,0.4627,16647.0,16646.0,0.0317512]
[1672634751875,0.4627,16647.0,16646.0,0.3324512]
[1672634754190,0.4627,16647.0,16646.0,0.33236417]
[1672634756293,0.4627,16647.0,16646.0,0.03166417]
[1672634756499,0.4627,16647.0,16646.0,0.33236417]
[1672634760079,0.3137,16647.0,16646.0,0.33236417]
[1672634760394,0.1634,16647.0,16646.0,0.33236417]
[1672634762187,1.9968,16652.0,16646.0,0.48246417]
[1672634762188,0.1488,16650.0,16646.0,0.48246417]
[1672634762389,0.1488,16650.0,16649.0,0.3007]
[1672634762597,0.1488,16650.0,16649.0,0.6007]
[1672634764194,0.2508,16650.0,16649.0,0.6057]
[1672634764599,0.4807,16653.0,16649.0,0.7558]
[1672634764811,0.3306,16653.0,16652.0,0.3007]
[1672634765026,0.1501,16653.0,16652.0,0.3007]
[1672634765656,0.1621,16653.0,16652.0,0.3007]
[1672634766072,0.1501,16653.0,16652.0,0.3007]
[1672634766390,0.1611,16653.0,16652.0,0.3107]
[1672634766587,0.1501,16653.0,16652.0,0.3087]
[1672634766802,0.1611,16653.0,16652.0,0.3087]
[1672634767751,0.1501,16653.0,16652.0,0.3007]
[1672634768071,0.1611,16653.0,16652.0,0.3087]
[1672634777325,0.1604,16653.0,16652.0,0.3087]
[1672634779213,0.1604,16653.0,16652.0,0.8087]
[1672634780794,0.1604,16653.0,16652.0,0.8007]
[1672634782275,0.1494,16653.0,16652.0,0.8577]
[1672634784685,0.1497,16653.0,16652.0,0.8577]
[1672634797934,0.1497,16653.0,16652.0,0.3577]
[1672634799083,0.1497,16653.0,16652.0,0.057]
[1672634800449,0.1497,16653.0,16652.0,0.257]
[1672634804644,0.2984,16653.0,16652.0,0.257]
[1672634804867,0.2984,16653.0,16652.0,0.057]
[1672634805710,0.2984,16653.0,16652.0,0.357]
[1672634806663,0.2984,16653.0,16652.0,0.3]
[1672634806854,0.2984,16653.0,16652.0,0.352]
[1672634807178,0.2984,16653.0,16652.0,0.3]
[1672634807380,0.3044,16653.0,16652.0,0.3]
[1672634808853,0.3044,16653.0,16651.0,0.3007]
[1672634809068,0.1501,16652.0,16651.0,0.3007]
[1672634809907,0.1501,16652.0,16651.0,0.3527]
[1672634815056,0.1501,16652.0,16651.0,0.35251466]
[1672634828717,0.1501,16652.0,16651.0,0.05181466]
[1672634828922,0.1501,16652.0,16651.0,0.35251466]
[1672634831358,0.1501,16652.0,16651.0,0.05181466]
[1672634831574,0.1501,16652.0,16651.0,0.35251466]
[1672634848922,0.1501,16652.0,16651.0,0.05181466]
[1672634849130,0.1501,16652.0,16651.0,0.35251466]
[1672634851034,0.14993694,16652.0,16651.0,0.35251466]
[1672634861629,0.14993694,16652.0,16651.0,0.05181466]
[1672634861847,0.14993694,16652.0,16651.0,0.35251466]
[1672634863628,0.14993694,16652.0,16651.0,0.05181466]
[1672634863839,0.14993694,16652.0,16651.0,0.35251466]
[1672634864683,0.29953694,16652.0,16651.0,0.35251466]
[1672634866569,0.29953694,16652.0,16651.0,0.05181466]
[1672634866786,0.29953694,16652.0,16651.0,0.35251466]
[1672634874043,0.29953694,16652.0,16651.0,0.05181466]
[1672634874254,0.29953694,16652.0,16651.0,0.35251466]
[1672634881185,0.44893694,16652.0,16651.0,0.35251466]
[1672634892850,0.44893694,16652.0,16651.0,0.05181466]
[1672634893064,0.44893694,16652.0,16651.0,0.35251466]
[1672634894425,0.44893694,16652.0,16651.0,0.3517]
[1672634894634,0.44893694,16652.0,16651.0,0.3007]
[1672634894951,0.45493694,16652.0,16651.0,0.3007]
[1672634897059,0.45493694,16652.0,16649.0,0.3]
[1672634897260,0.1488,16650.0,16649.0,0.3]
[1672634897471,0.1488,16650.0,16649.0,0.6007]
[1672634898315,0.1488,16650.0,16649.0,0.60058047]
[1672634898729,0.1488,16650.0,16649.0,0.73758047]
[1672634908929,0.1488,16650.0,16649.0,0.43688047]
[1672634909249,0.1488,16650.0,16649.0,0.73758047]
[1672634914615,0.1493,16650.0,16649.0,0.73758047]
[1672634918932,0.1493,16650.0,16649.0,0.43688047]
[1672634919243,0.1493,16650.0,16649.0,0.73758047]
[1672634923981,0.1493,16650.0,16649.0,0.43688047]
[1672634924190,0.1493,16650.0,16649.0,0.73758047]
[1672634931340,0.14910441,16650.0,16649.0,0.73758047]
[1672634934915,0.14910441,16650.0,16649.0,0.43688047]
[1672634935229,0.14910441,16650.0,16649.0,0.4377]
[1672634939005,0.14910441,16650.0,16649.0,0.137]
[1672634939216,0.14910441,16650.0,16649.0,0.4377]
[1672634939426,0.14910441,16650.0,16649.0,0.137]
[1672634940061,0.14910441,16650.0,16649.0,0.4377]
[1672634946048,0.14910441,16650.0,16649.0,0.137]
[1672634946250,0.14910441,16650.0,16649.0,0.4377]
[1672634950160,0.1489,16650.0,16649.0,0.4377]
[1672634953305,0.1489,16650.0,16649.0,0.137]
[1672634953518,0.1489,16650.0,16649.0,0.4377]
[1672634957089,0.1489,16650.0,16649.0,0.137]
[1672634957304,0.1489,16650.0,16649.0,0.4377]
[1672634959410,0.1489,16650.0,16649.0,0.137]
[1672634959825,0.1489,16650.0,16649.0,0.4377]
[1672634964239,0.1489,16650.0,16649.0,0.137]
[1672634964450,0.1489,16650.0,16649.0,0.4377]
[1672634964662,0.1501,16650.0,16649.0,0.4377]
[1672634972444,0.1501,16650.0,16649.0,0.137]
[1672634972650,0.1501,16650.0,16649.0,0.4377]
[1672634975597,0.1501,16650.0,16649.0,0.137]
[1672634976011,0.1501,16650.0,16649.0,0.4377]
[1672634977594,0.1501,16650.0,16649.0,0.4376392]
[1672634978545,0.1501,16650.0,16649.0,0.1369392]
[1672634978957,0.1501,16650.0,16649.0,0.4376392]
[1672634984849,0.1501,16650.0,16649.0,0.1369392]
[1672634985062,0.1501,16650.0,16649.0,0.4376392]
[1672635002418,0.1501,16650.0,16649.0,0.1369392]
[1672635002734,0.1501,16650.0,16649.0,0.4376392]
[1672635009873,0.1501,16650.0,16649.0,0.1369392]
[1672635010086,0.1501,16650.0,16649.0,0.4376392]
[1672635014601,0.1494,16650.0,16649.0,0.4376392]
[1672635026998,0.1494,16650.0,16649.0,0.1369392]
[1672635027205,0.1494,16650.0,16649.0,0.43745156]
[1672635029626,0.1494,16650.0,16649.0,0.13675156]
[1672635029843,0.1494,16650.0,16649.0,0.43745156]
[1672635044545,0.1488,16650.0,16649.0,0.43745156]
[1672635045385,0.1488,16650.0,16649.0,0.13675156]
[1672635045595,0.1488,16650.0,16649.0,0.43745156]
[1672635045806,0.1488,16650.0,16649.0,0.13675156]
[1672635046023,0.1488,16650.0,16649.0,0.43745156]
[1672635048337,0.14870018,16650.0,16649.0,0.43745156]
[1672635051601,0.14870018,16650.0,16649.0,0.13675156]
[1672635051811,0.14870018,16650.0,16649.0,0.43745156]
[1672635054656,0.1494,16650.0,16649.0,0.43745156]
[1672635054853,0.1494,16650.0,16649.0,0.13675156]
[1672635055063,0.1494,16650.0,16649.0,0.43745156]
[1672635057588,0.1494,16650.0,16649.0,0.13675156]
[1672635057909,0.1494,16650.0,16649.0,0.43745156]
[1672635075039,0.1494,16650.0,16649.0,0.13675156]
[1672635075347,0.1494,16650.0,16649.0,0.43745156]
[1672635084169,0.1488,16651.0,16649.0,0.58635156]
[1672635084384,0.1488,16651.0,16650.0,0.3]
[1672635084605,0.1501,16651.0,16650.0,0.3]
[1672635085748,0.1501,16651.0,16650.0,0.351]
[1672635086172,0.1501,16651.0,16650.0,0.3]
[1672635086389,0.1501,16651.0,16650.0,0.437]
[1672635086594,0.1501,16651.0,16650.0,0.3]
[1672635086805,0.1501,16651.0,16650.0,0.351]
[1672635093217,0.1501,16651.0,16650.0,0.6517]
[1672635097109,0.1501,16651.0,16650.0,0.65162955]
[1672635100472,0.1493,16653.0,16650.0,0.80172955]
[1672635100681,0.1493,16653.0,16652.0,0.3007]
[1672635102254,0.1553,16653.0,16652.0,0.3037]
[1672635103407,0.1561,16653.0,16652.0,0.3037]
[1672635104358,0.006,16653.0,16652.0,0.4538]
[1672635111913,0.006,16653.0,16652.0,0.1531]
[1672635112128,0.006,16653.0,16652.0,0.4538]
[1672635114550,0.006,16653.0,16652.0,0.4526]
[1672635124551,0.1549,16653.0,16652.0,0.3037]
[1672635134525,0.1557,16653.0,16652.0,0.3037]
[1672635135059,0.1557,16653.0,16652.0,0.003]
[1672635135251,0.1557,16653.0,16652.0,0.3037]
[1672635137460,0.1557,16653.0,16652.0,0.003]
[1672635137670,0.1557,16653.0,16652.0,0.3037]
[1672635144085,0.1497,16653.0,16652.0,0.3007]
[1672635144297,0.1557,16653.0,16652.0,0.3007]
[1672635144921,0.1497,16653.0,16652.0,0.3007]
[1672635145137,0.1557,16653.0,16652.0,0.3007]
[1672635146816,0.1557,16653.0,16652.0,0.30054564]
[1672635149339,0.1497,16653.0,16652.0,0.35154564]
[1672635152175,0.1497,16653.0,16652.0,0.3517]
[1672635158811,0.1497,16653.0,16652.0,0.051]
[1672635159119,0.1497,16653.0,16652.0,0.3517]
[1672635163748,0.1494,16653.0,16652.0,0.3517]
[1672635164692,0.1501,16653.0,16652.0,0.3517]
[1672635164905,0.1501,16653.0,16652.0,0.051]
[1672635165112,0.1501,16653.0,16652.0,0.3517]
[1672635167956,0.1501,16653.0,16652.0,0.051]
[1672635168166,0.1501,16653.0,16652.0,0.3517]
[1672635177627,0.1501,16653.0,16652.0,0.051]
[1672635177937,0.1501,16653.0,16652.0,0.3517]
[1672635184776,0.1488,16654.0,16652.0,0.5018]
[1672635185511,0.1488,16654.0,16652.0,0.2011]
[1672635185721,0.1488,16654.0,16653.0,0.3007]
[1672635186876,0.1548,16654.0,16653.0,0.3007]
[1672635193082,0.1548,16654.0,16653.0,0.30057977]
[1672635193613,0.1553,16654.0,16653.0,0.30057977]
[1672635194034,0.1493,16654.0,16653.0,0.30057977]
[1672635194237,0.1493,16654.0,16653.0,0.35157977]
[1672635194657,0.1497,16654.0,16653.0,0.35157977]
[1672635198866,0.14953412,16654.0,16653.0,0.35157977]
[1672635204652,0.14953412,16654.0,16653.0,0.3517]
[1672635208645,0.14953412,16654.0,16653.0,0.051]
[1672635209174,0.14953412,16654.0,16653.0,0.3517]
[1672635214526,0.4641,16656.0,16653.0,0.3517]
[1672635214742,0.1493,16654.0,16653.0,0.051]
[1672635214943,0.1493,16654.0,16653.0,0.3517]
[1672635224624,0.1501,16654.0,16653.0,0.3517]
[1672635226625,0.1501,16654.0,16653.0,0.051]
[1672635227143,0.1501,16654.0,16653.0,0.3517]
[1672635229456,0.1501,16654.0,16653.0,0.051]
[1672635230080,0.1501,16654.0,16653.0,0.3517]
[1672635232404,0.1501,16654.0,16653.0,0.051]
[1672635232716,0.1501,16654.0,16653.0,0.3517]
[1672635233986,0.7493,16654.0,16653.0,0.051]